fUST/lending_fUST_20250930
["ID","MTS","AMOUNT","RATE_DAILY","PERIOD"]
[388481749,1759199995628,282.12325965,0.00020744,2]
[388481750,1759200001658,300.0,0.00020744,2]
[388481751,1759200001996,300.0,0.00020744,2]
[388481752,1759200002131,300.0,0.00020744,2]
[388481753,1759200002440,300.0,0.00020744,2]
[388481754,1759200004453,300.0,0.00020744,2]
[388481755,1759200006554,1200.0,0.00020744,2]
[388481756,1759200006597,1000.0,0.00020745,2]
[388481757,1759200006698,1000.0,0.00020745,2]
[388481758,1759200007459,248.96289175,0.00020745,2]
[388481759,1759200011129,500.0,0.00020745,2]
[388481760,1759200012053,250.0,0.00020745,2]
[388481761,1759200012750,251.45953203,0.00020745,2]
[388481762,1759200013991,537.7399031,0.00020745,2]
[388481763,1759200014834,151.0,0.00020745,2]
[388481764,1759200015534,151.0,0.00020745,2]
[388481765,1759200016174,151.0,0.00020745,2]
[388481766,1759200017364,151.0,0.00020745,2]
[388481767,1759200018096,151.0,0.00020745,2]
[388481768,1759200018809,151.0,0.00020745,2]
[388481769,1759200019521,151.0,0.00020745,2]
[388481770,1759200020209,151.0,0.00020745,2]
[388481771,1759200020887,151.0,0.00020745,2]
[388481772,1759200021540,151.0,0.00020745,2]
[388481773,1759200022215,151.0,0.00020745,2]
[388481774,1759200023064,151.0,0.00020745,2]
[388481775,1759200023269,151.0,0.00020745,2]
[388481776,1759200023798,151.0,0.00020745,2]
[388481778,1759200032871,-151.0,0.00020745,2]
[388481779,1759200033086,-151.0,0.00020745,2]
[388481780,1759200033114,-151.0,0.00020745,2]
[388481781,1759200033144,-151.0,0.00020745,2]
[388481782,1759200033174,-151.0,0.00020745,2]
[388481783,1759200033203,-151.0,0.00020745,2]
[388481784,1759200033232,-153.76673585,0.00020745,2]
[388481785,1759200042932,-211.59244474,0.00020744,2]
[388481786,1759200043630,-5819.31185967,0.00020745,2]
[388481787,1759200043747,-10000.01,0.00020745,2]
[388481788,1759200043879,-10000.01,0.00020745,2]
[388481789,1759200044001,-10000.01,0.00020745,2]
[388481790,1759200044187,-10000.01,0.00020745,2]
[388481791,1759200044263,-10000.01,0.00020745,2]
[388481792,1759200052930,-10000.01,0.00020745,2]
[388481793,1759200053037,-10000.01,0.00020745,2]
[388481794,1759200053183,-10000.01,0.00020745,2]
[388481795,1759200053270,-10000.01,0.00020745,2]
[388481796,1759200063063,-300.0,0.00020744,2]
[388481797,1759200075241,9400.01,0.00019873,2]
[388481798,1759200075263,9832.0992306,0.00019873,2]
[388481799,1759200083059,167.9107694,0.00020506,2]
[388481800,1759200083082,118.0892306,0.00020506,2]
[388481801,1759200108856,9881.9207694,0.00019851,2]
[388481802,1759200108878,7422.8579684,0.00019851,2]
[388481803,1759200122343,300.0,0.00020744,2]
[388481806,1759200148903,854.76082992,0.00020645,2]
[388481808,1759200178299,274.836337,0.00019851,2]
[388481809,1759200182785,300.0,0.00020744,2]
[388481811,1759200220428,550.45300342,0.00020645,2]
[388481812,1759200242410,297.10186126,0.00020744,2]
[388481813,1759200242431,2.89813874,0.00020744,2]
[388481814,1759200301322,300.0,0.00020744,2]
[388481815,1759200302197,300.0,0.00020744,2]
[388481816,1759200303586,300.0,0.00020744,2]
[388481817,1759200303870,351.06707241,0.0002064,4]
[388481818,1759200306275,1200.0,0.00020744,2]
[388481819,1759200312045,300.0,0.00020744,2]
[388481822,1759200345038,800.0,0.00020601,2]
[388481823,1759200368749,-160.0,0.00020745,2]
[388481824,1759200369486,-6726.04478885,0.00020745,2]
[388481825,1759200369518,-10000.01,0.00020745,2]
[388481826,1759200369572,-4445.34071115,0.00020745,2]
[388481827,1759200369605,-1109.3285777,0.00020745,2]
[388481828,1759200369737,-10000.01,0.00020745,2]
[388481829,1759200369850,-10000.01,0.00020745,2]
[388481830,1759200369948,-10000.01,0.00020745,2]
[388481831,1759200378751,-300.0,0.00020744,2]
[388481832,1759200378789,-9400.01,0.00020745,2]
[388481833,1759200378868,-10000.01,0.00020745,2]
[388481834,1759200379145,-10000.01,0.00020745,2]
[388481835,1759200379173,-10000.01,0.00020745,2]
[388481836,1759200379300,-10000.01,0.00020745,2]
[388481837,1759200410313,-290.22086844,0.00020745,2]
[388481838,1759200422740,300.0,0.00020744,2]
[388481839,1759200454824,159.2550529,0.00020645,2]
[388481840,1759200476144,222.64898899,0.00020744,2]
[388481841,1759200482454,300.0,0.00020744,2]
[388481845,1759200515728,481.64637801,0.00020645,2]
[388481846,1759200516971,815.62,0.00020735,3]
[388481847,1759200542695,300.0,0.00020744,2]
[388481867,1759200602199,300.0,0.00020744,2]
[388481871,1759200632133,-160.0,0.00020745,2]
[388481872,1759200632142,-24224.22534132,0.00020745,2]
[388482103,1759200643195,-91990.22372736,0.00020745,2]
[388482104,1759200643205,-19652.66480189,0.00020745,2]
[388482123,1759200663527,300.0,0.00020744,2]
[388482124,1759200673860,160.0,0.00020596,3]
[388482125,1759200674530,748.0,0.00020281,2]
[388482126,1759200680220,748.0,0.0002067,2]
[388482127,1759200689499,-683.80866392,0.00020745,2]
[388482128,1759200689529,-200.0,0.00020745,10]
[388482129,1759200689559,-200.0,0.00020745,10]
[388482130,1759200689589,-200.0,0.00020745,10]
[388482131,1759200689617,-200.0,0.00020745,10]
[388482132,1759200689645,-200.0,0.00020745,10]
[388482133,1759200689672,-200.0,0.00020745,10]
[388482134,1759200689704,-200.0,0.00020745,10]
[388482135,1759200689732,-200.0,0.00020745,10]
[388482136,1759200689761,-200.0,0.00020745,10]
[388482137,1759200689788,-200.0,0.00020745,10]
[388482138,1759200689815,-200.0,0.00020745,10]
[388482139,1759200689842,-200.0,0.00020745,10]
[388482140,1759200689870,-200.0,0.00020745,10]
[388482141,1759200689896,-200.0,0.00020745,10]
[388482142,1759200689924,-200.0,0.00020745,10]
[388482143,1759200689952,-200.0,0.00020745,10]
[388482144,1759200689979,-200.0,0.00020745,10]
[388482145,1759200690005,-200.0,0.00020745,10]
[388482146,1759200690031,-238.719102,0.00020745,10]
[388482147,1759200690060,-206.95446816,0.00020807,2]
[388482148,1759200705755,-246.24816912,0.00020674,2]
[388482149,1759200719480,-553.75183088,0.00020674,2]
[388482150,1759200719693,-4634.12320616,0.00020745,2]
[388482151,1759200729691,-300.0,0.00020744,2]
[388482152,1759200745703,220.25637584,0.00020673,2]
[388482153,1759200782363,300.0,0.00020744,2]
[388482154,1759200801654,214.263381,0.00019869,2]
[388482155,1759200809520,8665.49024316,0.00020645,2]
[388482156,1759200809542,10000.01,0.00020645,2]
[388482157,1759200809563,10000.01,0.00020645,2]
[388482158,1759200809584,10000.01,0.00020645,2]
[388482159,1759200810780,-200.77356247,0.00020645,2]
[388482160,1759200830164,-600.0,0.00020645,2]
[388482161,1759200839850,-719.5522088,0.00020607,2]
[388482162,1759200839918,-8560.9055824,0.00020645,2]
[388482163,1759200839943,-10000.01,0.00020645,2]
[388482164,1759200840005,-10000.01,0.00020645,2]
[388482165,1759200840133,-10000.01,0.00020645,2]
[388482166,1759200850109,-300.0,0.00020644,2]
[388482167,1759200857898,-160.23361501,0.00020645,2]
[388482168,1759200859500,-341.54319708,0.00020645,2]
[388482169,1759200862031,-385.83487905,0.00020645,2]
[388482170,1759200864137,-160.0,0.00020645,2]
[388482171,1759200866427,-267.53584996,0.00020645,2]
[388482172,1759200868663,-169.7629512,0.00020645,2]
[388482173,1759200872648,500.0,0.00020644,2]
[388482174,1759200872700,352.30488316,0.00020644,2]
[388482175,1759200872750,231.3784324,0.00020644,2]
[388482176,1759200873621,-271.5410163,0.00020645,2]
[388482177,1759200873734,500.0,0.00020644,2]
[388482178,1759200873814,500.0,0.00020644,2]
[388482179,1759200873855,266.33754296,0.00020644,2]
[388482180,1759200876134,-203.26568249,0.00020645,2]
[388482181,1759200878284,-300.0,0.00020645,2]
[388482182,1759200880802,-246.24816912,0.00020645,2]
[388482183,1759200884775,216.92766938,0.00020548,2]
[388482184,1759200902440,300.0,0.00020644,2]
[388482185,1759200962389,300.0,0.00020644,2]
[388482186,1759201009616,203.69420891,0.00020603,2]
[388482187,1759201022858,300.0,0.00020644,2]
[388482188,1759201049712,407.8,0.00020635,3]
[388482189,1759201060380,203.9,0.00020635,3]
[388482190,1759201071058,611.7,0.00020635,3]
[388482191,1759201082416,300.0,0.00020644,2]
[388482192,1759201101899,203.9,0.00020635,3]
[388482193,1759201109221,274.836337,0.00019822,2]
[388482194,1759201112799,611.7,0.00020635,3]
[388482195,1759201120103,425.90830023,0.00020596,2]
[388482197,1759201142618,300.0,0.00020644,2]
[388482198,1759201172233,575.64176704,0.00020596,2]
[388482199,1759201202390,300.0,0.00020644,2]
[388482200,1759201262417,300.0,0.00020644,2]
[388482201,1759201322584,300.0,0.00020644,2]
[388482202,1759201364913,800.0,0.00020642,2]
[388482203,1759201364960,113.98085892,0.00020546,2]
[388482204,1759201364984,686.01914108,0.00020546,2]
[388482205,1759201368935,281.32743181,0.00020645,2]
[388482206,1759201414383,372.66976271,0.00020566,2]
[388482207,1759201442719,300.0,0.00020644,2]
[388482208,1759201502189,300.0,0.00020644,2]
[388482209,1759201513193,460.51341364,0.00020596,2]
[388482210,1759201519283,250.0,0.00020429,2]
[388482211,1759201562707,300.0,0.00020644,2]
[388482212,1759201569729,551.0,0.00020645,2]
[388482213,1759201622831,300.0,0.00020644,2]
[388482214,1759201696631,407.8,0.00020635,3]
[388482215,1759201704463,172.0,0.00020157,2]
[388482216,1759201710153,172.0,0.00020315,2]
[388482217,1759201714842,326.08604238,0.00020596,2]
[388482218,1759201714880,172.0,0.00020418,2]
[388482219,1759201725594,172.0,0.00020355,2]
[388482220,1759201742321,300.0,0.00020644,2]
[388482221,1759201752052,-160.0,0.00020645,2]
[388482222,1759201752526,-4756.59420838,0.00020645,2]
[388482223,1759201752566,-10000.01,0.00020645,2]
[388482224,1759201752578,-10000.01,0.00020645,2]
[388482225,1759201752667,-10000.01,0.00020645,2]
[388482226,1759201761928,-10000.01,0.00020645,2]
[388482227,1759201762023,-10000.01,0.00020645,2]
[388482228,1759201771932,-10000.01,0.00020645,2]
[388482229,1759201772064,-10000.01,0.00020645,2]
[388482230,1759201772169,-10000.01,0.00020645,2]
[388482231,1759201802487,300.0,0.00020644,2]
[388482232,1759201809593,500.0,0.00020644,2]
[388482233,1759201809821,500.0,0.00020644,2]
[388482234,1759201810036,500.0,0.00020644,2]
[388482235,1759201810152,500.0,0.00020644,2]
[388482236,1759201810359,500.0,0.00020644,2]
[388482237,1759201810496,500.0,0.00020644,2]
[388482238,1759201810790,354.02408488,0.00020644,2]
[388482239,1759201810824,500.0,0.00020644,2]
[388482240,1759201811201,500.0,0.00020644,2]
[388482241,1759201811554,500.0,0.00020644,2]
[388482242,1759201812046,500.0,0.00020644,2]
[388482243,1759201812297,-4345.98591512,0.00020645,2]
[388482244,1759201812422,500.0,0.00020644,2]
[388482245,1759201812463,-9500.01,0.00020645,2]
[388482246,1759201812614,-10000.01,0.00020645,2]
[388482247,1759201812727,-10000.01,0.00020645,2]
[388482248,1759201812840,-10000.01,0.00020645,2]
[388482249,1759201813002,-10000.01,0.00020645,2]
[388482250,1759201813114,-10000.01,0.00020645,2]
[388482251,1759201813249,-10000.01,0.00020645,2]
[388482252,1759201813377,-10000.01,0.00020645,2]
[388482253,1759201821421,-385.83487905,0.00020644,2]
[388482254,1759201822111,-114.16512095,0.00020644,2]
[388482255,1759201822145,-500.0,0.00020644,2]
[388482256,1759201822176,-500.0,0.00020644,2]
[388482257,1759201822206,-500.0,0.00020644,2]
[388482258,1759201822238,-500.0,0.00020644,2]
[388482259,1759201822270,-500.0,0.00020644,2]
[388482260,1759201822300,-500.0,0.00020644,2]
[388482261,1759201822330,-500.0,0.00020644,2]
[388482262,1759201822359,-500.0,0.00020644,2]
[388482263,1759201822390,-500.0,0.00020644,2]
[388482264,1759201822422,-271.6797581,0.00020644,2]
[388482265,1759201822534,-228.3202419,0.00020644,2]
[388482266,1759201822564,-350.0,0.00020644,2]
[388482267,1759201822593,-500.0,0.00020644,2]
[388482268,1759201822621,-2843.3695162,0.00020645,2]
[388482269,1759201822844,-2156.6304838,0.00020645,2]
[388482270,1759201822854,-228.3202419,0.00020645,2]
[388482282,1759201832111,-10000.01,0.00020645,2]
[388482288,1759201832236,-10000.01,0.00020645,2]
[388482302,1759201832393,-10000.01,0.00020645,2]
[388482304,1759201832405,-18057.46988547,0.00020645,2]
[388482310,1759201832459,-2106.0999999,0.00020645,2]
[388482318,1759201832526,-10000.01,0.00020645,2]
[388482321,1759201832662,-10000.01,0.00020645,2]
[388482322,1759201832786,-10000.01,0.00020645,2]
[388482323,1759201832930,-10000.01,0.00020645,2]
[388482324,1759201833282,-10000.01,0.00020645,2]
[388482325,1759201833461,-10000.01,0.00020645,2]
[388482437,1759201852176,-184.39571548,0.00020596,2]
[388482438,1759201937024,168.0,0.00020332,2]
[388482439,1759201946094,168.0,0.00020473,2]
[388482440,1759201960234,-162.0,0.00020643,2]
[388482441,1759201983903,-86.90142986,0.00020643,2]
[388482442,1759201983926,-75.09857014,0.00020644,2]
[388482443,1759201987531,-423.33976686,0.00020644,2]
[388482444,1759201992126,-13.52656568,0.00020644,2]
[388482445,1759201992168,-201.13366746,0.00020644,2]
[388482446,1759202001671,214.66023314,0.00020465,2]
[388482447,1759202002478,-98.86633254,0.00020644,2]
[388482448,1759202042961,300.0,0.00020644,2]
[388482452,1759202080303,-229.65256294,0.00020645,2]
[388482453,1759202119420,9700.01,0.00020545,2]
[388482454,1759202119440,10000.01,0.00020545,2]
[388482455,1759202119461,10000.01,0.00020545,2]
[388482456,1759202119481,10000.01,0.00020545,2]
[388482457,1759202119503,10000.01,0.00020545,2]
[388482458,1759202119525,10000.01,0.00020545,2]
[388482459,1759202119547,10000.01,0.00020545,2]
[388482460,1759202119568,10000.01,0.00020545,2]
[388482461,1759202119589,10000.01,0.00020545,2]
[388482462,1759202119612,10000.01,0.00020545,2]
[388482463,1759202120050,-229.65256294,0.00020545,2]
[388482464,1759202155235,-511.96490268,0.00020545,2]
[388482466,1759202164025,300.0,0.00020544,2]
[388482467,1759202173046,-246.23293198,0.00020545,2]
[388482468,1759202186654,-201.13366746,0.00020545,2]
[388482469,1759202192468,336.49090139,0.00020544,2]
[388482470,1759202192495,511.96490268,0.00020544,2]
[388482471,1759202192521,174.9961814,0.00020544,2]
[388482473,1759202193661,500.0,0.00020544,2]
[388482474,1759202193692,500.0,0.00020544,2]
[388482475,1759202193718,599.16164406,0.00020544,2]
[388482476,1759202193747,206.0026761,0.00020544,2]
[388482477,1759202193776,500.0,0.00020544,2]
[388482478,1759202193802,500.0,0.00020544,2]
[388482479,1759202193829,500.0,0.00020544,2]
[388482480,1759202193858,500.0,0.00020544,2]
[388482481,1759202193884,500.0,0.00020544,2]
[388482482,1759202193911,500.0,0.00020544,2]
[388482483,1759202193938,500.0,0.00020544,2]
[388482484,1759202193964,500.0,0.00020544,2]
[388482485,1759202193995,500.0,0.00020544,2]
[388482486,1759202194027,500.0,0.00020544,2]
[388482487,1759202194053,535.29089428,0.00020544,2]
[388482488,1759202194084,210.15922553,0.00020544,2]
[388482489,1759202194109,313.93343899,0.00020544,2]
[388482490,1759202194140,500.0,0.00020544,2]
[388482491,1759202194172,312.01013557,0.00020544,2]
[388482492,1759202194198,187.98986443,0.00020544,2]
[388482493,1759202194228,500.0,0.00020544,2]
[388482494,1759202194260,500.0,0.00020544,2]
[388482495,1759202194301,500.0,0.00020544,2]
[388482496,1759202194327,500.0,0.00020544,2]
[388482497,1759202194353,500.0,0.00020544,2]
[388482498,1759202194379,500.0,0.00020544,2]
[388482499,1759202194406,500.0,0.00020544,2]
[388482500,1759202194432,500.0,0.00020544,2]
[388482501,1759202194462,500.0,0.00020544,2]
[388482502,1759202194488,500.0,0.00020544,2]
[388482503,1759202194519,500.0,0.00020544,2]
[388482504,1759202194549,500.0,0.00020544,2]
[388482505,1759202194574,500.0,0.00020544,2]
[388482506,1759202194601,500.0,0.00020544,2]
[388482507,1759202194626,500.0,0.00020544,2]
[388482508,1759202194652,500.0,0.00020544,2]
[388482509,1759202194677,500.0,0.00020544,2]
[388482510,1759202194900,177.62789726,0.00020544,2]
[388482511,1759202194928,500.0,0.00020544,2]
[388482512,1759202194958,500.0,0.00020544,2]
[388482513,1759202194985,134.39223831,0.00020544,2]
[388482514,1759202195007,365.60776169,0.00020544,2]
[388482515,1759202195033,500.0,0.00020544,2]
[388482516,1759202195060,500.0,0.00020544,2]
[388482517,1759202195087,500.0,0.00020544,2]
[388482518,1759202195117,500.0,0.00020544,2]
[388482519,1759202195147,500.0,0.00020544,2]
[388482520,1759202195178,500.0,0.00020544,2]
[388482521,1759202195214,500.0,0.00020544,2]
[388482522,1759202195241,500.0,0.00020544,2]
[388482523,1759202195280,500.0,0.00020544,2]
[388482524,1759202195306,500.0,0.00020544,2]
[388482525,1759202195338,500.0,0.00020544,2]
[388482526,1759202196589,1370.39794347,0.0002054,2]
[388482527,1759202200430,-162.0,0.00020545,2]
[388482528,1759202215323,-249.31459706,0.00020545,2]
[388482529,1759202222852,300.0,0.00020544,2]
[388482530,1759202230408,-269.96811683,0.00020545,2]
[388482531,1759202234450,-310.02884923,0.00020545,2]
[388482532,1759202237671,-577.79248738,0.00020545,2]
[388482533,1759202240424,1200.0,0.00020544,2]
[388482534,1759202241967,-300.0,0.00020545,2]
[388482535,1759202244233,-254.2624915,0.00020545,2]
[388482536,1759202245653,248.90142986,0.00020544,2]
[388482537,1759202246470,-219.13588773,0.00020545,2]
[388482538,1759202248764,-245.48,0.00020545,2]
[388482539,1759202251527,-424.73732778,0.00020545,2]
[388482541,1759202253164,-379.43160316,0.00020545,2]
[388482542,1759202257018,-493.4095924,0.00020545,2]
[388482543,1759202261400,-300.0,0.00020545,2]
[388482544,1759202261429,184.16180844,0.0002054,2]
[388482545,1759202263874,-300.0,0.00020545,2]
[388482546,1759202266588,-152.0,0.00020545,2]
[388482547,1759202268701,-351.85199585,0.00020545,2]
[388482548,1759202271034,-535.93985255,0.00020545,2]
[388482549,1759202273880,-480.0,0.00020545,2]
[388482550,1759202278021,-157.32309597,0.00020545,2]
[388482551,1759202281642,-265.34169547,0.00020545,2]
[388482552,1759202282673,300.0,0.00020544,2]
[388482553,1759202283376,-300.0,0.00020545,2]
[388482554,1759202285964,-703.7046768,0.00020545,2]
[388482555,1759202287996,-284.84588893,0.00020545,2]
[388482556,1759202289791,-405.76413012,0.00020545,2]
[388482559,1759202303704,-300.0,0.00020545,2]
[388482560,1759202308570,-177.569784,0.00020545,2]
[388482561,1759202314543,530.94105654,0.0002054,2]
[388482562,1759202314564,37.45966595,0.0002054,2]
[388482563,1759202333265,-301.27016967,0.00020545,2]
[388482564,1759202337060,-214.531751,0.00020545,2]
[388482565,1759202340757,-280.69706122,0.00020545,2]
[388482566,1759202342462,300.0,0.00020544,2]
[388482567,1759202351014,189.54208571,0.00020544,2]
[388482568,1759202351129,500.0,0.00020544,2]
[388482569,1759202351185,391.22582858,0.00020544,2]
[388482570,1759202351247,500.0,0.00020544,2]
[388482571,1759202351347,500.0,0.00020544,2]
[388482572,1759202368941,426.99983775,0.00020544,2]
[388482575,1759202402477,300.0,0.00020544,2]
[388482577,1759202403460,1200.0,0.00020544,2]
[388482578,1759202404096,177.569784,0.0001976,2]
[388482579,1759202413914,-4926.55256487,0.00020545,2]
[388482580,1759202414048,-10000.01,0.00020545,2]
[388482581,1759202414167,-10000.01,0.00020545,2]
[388482582,1759202414296,-10000.01,0.00020545,2]
[388482583,1759202414410,-10000.01,0.00020545,2]
[388482584,1759202414525,-10000.01,0.00020545,2]
[388482585,1759202423356,-10000.01,0.00020545,2]
[388482586,1759202423480,-10000.01,0.00020545,2]
[388482587,1759202423589,-10000.01,0.00020545,2]
[388482588,1759202423696,-10000.01,0.00020545,2]
[388482589,1759202423796,-10000.01,0.00020545,2]
[388482591,1759202433573,-1121.195871,0.0001992,2]
[388482592,1759202434299,805.3,0.00020535,3]
[388482593,1759202444628,800.0,0.00020369,2]
[388482594,1759202444933,402.65,0.00020535,3]
[388482595,1759202455634,201.33,0.00020535,3]
[388482596,1759202462417,300.0,0.00020544,2]
[388482597,1759202466725,603.99,0.00020535,3]
[388482598,1759202522664,300.0,0.00020544,2]
[388482599,1759202523903,-6586.74,0.00020545,2]
[388482600,1759202523966,-10000.01,0.00020545,2]
[388482601,1759202524082,-10000.01,0.00020545,2]
[388482602,1759202524197,-10000.01,0.00020545,2]
[388482603,1759202524332,-10000.01,0.00020545,2]
[388482604,1759202524463,-10000.01,0.00020545,2]
[388482605,1759202524591,-10000.01,0.00020545,2]
[388482606,1759202524708,-10000.01,0.00020545,2]
[388482607,1759202524847,-10000.01,0.00020545,2]
[388482608,1759202524949,-10000.01,0.00020545,2]
[388482609,1759202573752,-803.50101811,0.00020522,2]
[388482610,1759202573783,-264.34664521,0.00020544,2]
[388482611,1759202573812,-500.0,0.00020544,2]
[388482612,1759202573841,-170.47134603,0.00020544,2]
[388482613,1759202573870,-500.0,0.00020544,2]
[388482614,1759202573898,-200.78550851,0.00020544,2]
[388482615,1759202573928,-500.0,0.00020544,2]
[388482616,1759202573956,-500.0,0.00020544,2]
[388482617,1759202573986,-500.0,0.00020544,2]
[388482618,1759202574013,-489.87544628,0.00020544,2]
[388482619,1759202574043,-153.49019682,0.00020544,2]
[388482620,1759202574071,-335.06967808,0.00020544,2]
[388482621,1759202574188,-164.93032192,0.00020544,2]
[388482622,1759202574216,-413.39707274,0.00020544,2]
[388482623,1759202574244,-402.6596764,0.00020544,2]
[388482624,1759202574271,-500.0,0.00020544,2]
[388482625,1759202574299,-651.64619369,0.00020544,2]
[388482626,1759202574329,-500.0,0.00020544,2]
[388482627,1759202574358,-300.0,0.00020544,2]
[388482628,1759202574385,-500.0,0.00020544,2]
[388482629,1759202574411,-500.0,0.00020544,2]
[388482630,1759202574441,-934.7434705,0.00020544,2]
[388482631,1759202574626,-265.2565295,0.00020544,2]
[388482632,1759202574953,-164.93032192,0.00020545,2]
[388482633,1759202575075,-265.2565295,0.00020545,2]
[388482634,1759202575091,-9469.496941,0.00020545,2]
[388482635,1759202575118,-10000.01,0.00020545,2]
[388482636,1759202575152,-10000.01,0.00020545,2]
[388482637,1759202575182,-10000.01,0.00020545,2]
[388482638,1759202575224,-10000.01,0.00020545,2]
[388482639,1759202575237,-8301.308523,0.00020545,2]
[388482640,1759202591574,232.17014799,0.00020544,2]
[388482641,1759202593291,-300.0,0.00020544,2]
[388482642,1759202609827,-200.0,0.00020544,2]
[388482643,1759202609852,-205.76413012,0.00020544,2]
[388482644,1759202623985,9767.83985201,0.00020445,2]
[388482645,1759202624009,10000.01,0.00020445,2]
[388482646,1759202624032,10000.01,0.00020445,2]
[388482647,1759202624054,10000.01,0.00020445,2]
[388482648,1759202624075,10000.01,0.00020445,2]
[388482649,1759202624097,10000.01,0.00020445,2]
[388482650,1759202624122,10000.01,0.00020445,2]
[388482651,1759202624144,10000.01,0.00020445,2]
[388482652,1759202624165,10000.01,0.00020445,2]
[388482653,1759202624186,10000.01,0.00020445,2]
[388482654,1759202624210,-310.02884923,0.00020445,2]
[388482655,1759202640508,-269.96811683,0.00019802,2]
[388482656,1759202653942,-560.73600272,0.00019802,2]
[388482657,1759202653972,-3319.49366174,0.00019802,2]
[388482658,1759202654002,-585.33976686,0.0002023,2]
[388482659,1759202654031,-300.0,0.00020444,2]
[388482660,1759202654387,468.87113736,0.0001999,2]
[388482661,1759202654408,10000.01,0.0001999,2]
[388482662,1759202654435,10000.01,0.0001999,2]
[388482663,1759202654457,10000.01,0.0001999,2]
[388482664,1759202672386,-9531.13886264,0.0001999,2]
[388482665,1759202672491,-10000.01,0.0001999,2]
[388482666,1759202672612,-10000.01,0.0001999,2]
[388482667,1759202672723,-10000.01,0.0001999,2]
[388482668,1759202672873,-10000.01,0.0001999,2]
[388482669,1759202672975,-10000.01,0.0001999,2]
[388482670,1759202673109,-0.1,0.0001999,2]
[388482671,1759202673132,-9999.81,0.0001999,2]
[388482672,1759202673636,313.55800063,0.00019989,2]
[388482673,1759202673704,543.41808353,0.00019989,2]
[388482674,1759202675669,351.01519068,0.00019989,2]
[388482675,1759202675699,500.0,0.00019989,2]
[388482676,1759202675732,170.58787714,0.00019989,2]
[388482677,1759202675758,500.0,0.00019989,2]
[388482678,1759202675784,186.4030997,0.00019989,2]
[388482679,1759202675813,500.0,0.00019989,2]
[388482680,1759202675848,500.0,0.00019989,2]
[388482681,1759202675874,500.0,0.00019989,2]
[388482682,1759202675908,500.0,0.00019989,2]
[388482683,1759202675939,500.0,0.00019989,2]
[388482684,1759202675969,500.0,0.00019989,2]
[388482685,1759202676034,500.0,0.00019989,2]
[388482686,1759202676076,500.0,0.00019989,2]
[388482687,1759202676136,500.0,0.00019989,2]
[388482688,1759202676175,271.88139987,0.00019989,2]
[388482689,1759202676245,-214.531751,0.00020445,2]
[388482690,1759202684814,-265.34169547,0.00020445,2]
[388482691,1759202694220,499.99999999,0.00019989,2]
[388482693,1759202700501,-254.2624915,0.00020445,2]
[388482694,1759202701391,300.0,0.00020444,2]
[388482695,1759202702088,300.0,0.00020444,2]
[388482696,1759202702590,300.0,0.00020444,2]
[388482697,1759202703386,285.0,0.00020444,2]